bitfinex-derivatives/quotes_ETHF0:USTF0_20241008
["timestamp","ask_amount","ask_price","bid_price","bid_amount"]
[1728427116905,1.87852,2449.2,2449.1,1.68020734]
[1728427117908,1.2135,2449.4,2449.3,0.4085]
[1728427118211,2.6835,2449.4,2448.6,4.46608642]
[1728427118417,2.6835,2449.4,2448.9,0.4138]
[1728427118710,3.09199,2449.4,2449.2,0.4085]
[1728427119008,3.09199,2449.4,2448.9,0.4138]
[1728427119204,1.2135,2449.4,2449.3,0.4085]
[1728427119410,1.2135,2449.4,2449.3,1.67078786]
[1728427119705,1.2135,2449.4,2449.3,2.68742938]
[1728427119906,1.2135,2449.4,2449.3,2.68743353]
[1728427121108,1.2135,2449.4,2449.3,3.69070967]
[1728427121302,1.2135,2449.4,2449.3,2.06126722]
[1728427121514,1.2135,2449.4,2449.3,2.68846363]
[1728427121710,1.2135,2449.4,2449.3,3.69197789]
[1728427122015,3.61623,2449.8,2449.6,0.40844]
[1728427122307,0.4068,2449.7,2449.6,0.40844]
[1728427122512,0.81523,2449.7,2449.6,1.03052572]
[1728427122816,0.81523,2449.7,2449.6,1.6441283]
[1728427123012,0.81523,2449.7,2449.6,1.64413172]
[1728427123405,0.4068,2449.7,2449.6,1.64413172]
[1728427123610,3.2078,2449.8,2449.7,0.40843]
[1728427123916,3.61622,2449.8,2449.7,3.21328569]
[1728427124115,3.61622,2449.8,2449.7,2.63973057]
[1728427124413,3.2078,2449.8,2449.7,2.63973057]
[1728427124713,3.2078,2449.8,2449.7,3.62191708]
[1728427125011,3.2078,2449.8,2449.7,3.62258186]
[1728427125212,3.2078,2449.8,2449.7,8.94968552]
[1728427125414,3.2078,2449.8,2449.7,7.70498186]
[1728427125607,3.2078,2449.8,2449.7,10.37359105]
[1728427125916,3.2078,2449.8,2449.7,11.60091304]
[1728427126209,1.1969,2450.0,2449.9,0.4084]
[1728427126416,1.1969,2450.0,2449.9,1.64461225]
[1728427126916,1.1969,2450.0,2449.9,3.6154221]
[1728427127120,1.1969,2450.0,2449.9,4.0272221]
[1728427127412,1.1969,2450.0,2449.9,2.05641225]
[1728427129210,1.1969,2450.0,2449.9,2.04619229]
[1728427129411,1.1969,2450.0,2449.9,1.43233132]
[1728427129606,0.7939,2450.0,2449.9,1.43233132]
[1728427130110,0.7939,2450.0,2449.9,2.037291]
[1728427130316,0.7939,2450.0,2449.9,1.43233132]
[1728427130914,0.7939,2450.0,2449.9,5.51393132]
[1728427131607,0.7939,2450.0,2449.9,4.9018]
[1728427131812,0.7939,2450.0,2449.9,5.51349633]
[1728427132011,0.4104,2450.1,2449.9,5.10509633]
[1728427132212,0.4104,2450.1,2450.0,0.40838]
[1728427137211,2.28877,2450.1,2450.0,0.40838]
[1728427137416,1.8804,2450.1,2449.6,3.5932]
[1728427137712,1.87842,2449.8,2449.7,0.40843]
[1728427138013,1.87842,2449.8,2449.3,5.0708]
[1728427138313,1.47,2449.9,2449.4,1.21510943]
[1728427138618,1.47,2449.9,2449.8,0.4084]
[1728427138817,1.8784,2449.9,2449.8,0.4084]
[1728427140618,1.47,2449.9,2449.7,0.40842]
[1728427140821,1.87841,2449.9,2449.3,5.0708]
[1728427141022,1.87841,2449.9,2449.7,0.40842]
[1728427141812,1.47,2449.9,2449.8,0.40842]
[1728427142214,1.47,2449.9,2449.3,3.6008]
[1728427142516,1.87843,2449.7,2449.6,0.40844]
[1728427142711,1.02099,2450.0,2449.6,0.40844]
[1728427142712,0.40842,2449.8,2449.6,0.40844]
[1728427143320,0.40842,2449.8,2449.7,0.40843]
[1728427143920,3.61618,2450.1,2449.9,0.40839]
[1728427144113,3.61618,2450.1,2449.3,0.393]
[1728427144114,3.2078,2450.1,2450.0,0.40838]
[1728427144315,0.40838,2450.1,2449.9,0.40838]
[1728427144621,0.40838,2450.1,2450.0,0.40838]
[1728427144622,1.87838,2450.1,2450.0,0.40838]
[1728427147314,1.87838,2450.1,2449.7,0.4189]
[1728427147315,1.47,2450.1,2449.7,0.4189]
[1728427147515,4.6778,2450.1,2449.7,0.4189]
[1728427147720,5.08617,2450.1,2450.0,0.40838]
[1728427148322,1.87837,2450.1,2450.0,0.40838]
[1728427149412,1.87837,2450.1,2449.9,0.40839]
[1728427149618,1.47,2450.1,2450.0,0.40838]
[1728427149815,0.40836,2450.2,2450.1,0.40837]
[1728427150119,0.40836,2450.2,2449.7,1.8889]
[1728427150320,0.40836,2450.2,2450.0,0.40837]
[1728427150711,1.47,2450.3,2450.0,0.40837]
[1728427150917,1.47,2450.3,2449.8,0.40842]
[1728427150918,0.40836,2450.2,2449.8,0.40842]
[1728427151120,0.40836,2450.2,2450.0,0.40837]
[1728427151310,0.40836,2450.2,2450.1,0.40837]
[1728427151514,0.40836,2450.2,2450.0,0.40837]
[1728427151724,1.47,2450.3,2450.0,0.40837]
[1728427151918,0.40837,2450.1,2450.0,0.40837]
[1728427152320,0.40836,2450.2,2450.1,0.40836]
[1728427152515,0.40836,2450.2,2449.7,1.8889]
[1728427152725,0.40836,2450.2,2450.0,0.40837]
[1728427153019,0.40837,2450.1,2450.0,0.40837]
[1728427153619,0.40836,2450.2,2450.1,0.40836]
[1728427153816,0.40836,2450.2,2449.7,1.8889]
[1728427154017,0.40836,2450.2,2450.1,0.40837]
[1728427154523,1.47,2450.2,2449.7,0.4189]
[1728427154727,3.61618,2450.1,2450.0,0.40838]
[1728427155524,3.2078,2450.1,2450.0,0.40838]
[1728427155723,1.47,2450.3,2449.7,1.8889]
[1728427156029,0.40836,2450.2,2450.1,0.40837]
[1728427156222,0.40837,2450.1,2450.0,0.40837]
[1728427156418,1.47,2450.2,2450.0,0.40837]
[1728427156621,1.87836,2450.2,2450.0,0.40837]
[1728427157324,0.3968,2450.1,2450.0,0.40837]
[1728427157525,0.8161,2450.1,2450.0,0.40837]
[1728427157728,1.2264,2450.1,2450.0,0.40837]
[1728427164448,1.2264,2450.1,2450.0,1.0208994]
[1728427165034,1.2264,2450.1,2450.0,1.6264031]
[1728427165447,1.2264,2450.1,2450.0,1.62661002]
[1728427167243,1.2264,2450.1,2450.0,1.62675165]
[1728427167447,1.2264,2450.1,2450.0,2.6076196]
[1728427168246,1.2264,2450.1,2450.0,3.57723658]
[1728427170345,1.2264,2450.1,2450.0,0.40837]
[1728427170544,3.2078,2450.4,2450.0,7.14613827]
[1728427170741,0.8173,2450.4,2450.3,0.40833]
[1728427171045,0.3958,2450.6,2450.5,0.4083]
[1728427171248,0.3958,2450.6,2450.5,1.02158395]
[1728427171437,4.0251,2450.7,2450.6,0.40828]
[1728427171637,4.0251,2450.7,2450.6,3.57822041]
[1728427171638,4.43337,2450.7,2450.6,3.57822041]
[1728427172043,4.0251,2450.7,2450.6,3.57822041]
[1728427172344,4.0251,2450.7,2450.6,2.60867255]
[1728427172843,0.8173,2450.7,2450.6,2.60867255]
[1728427173245,0.8173,2450.7,2450.6,1.62781398]
[1728427173651,0.8173,2450.7,2450.6,0.40828]
[1728427173846,0.8173,2450.7,2450.6,1.02081754]
[1728427174052,0.8173,2450.7,2450.6,1.62615029]
[1728427174945,0.8173,2450.7,2450.6,1.21787029]
[1728427175257,0.4083,2450.5,2450.3,0.40833]
[1728427175455,0.40832,2450.4,2450.3,0.40833]
[1728427175656,0.80502,2450.4,2450.3,0.40833]
[1728427175848,0.3967,2450.4,2450.0,2.00863002]
[1728427176048,0.3967,2450.4,2450.2,1.47]
[1728427176254,0.3866,2450.6,2450.5,0.4083]
[1728427176456,0.79488,2450.6,2450.5,0.4083]
[1728427176650,0.3866,2450.6,2450.5,0.4083]
[1728427176850,0.79488,2450.6,2450.5,0.4083]
[1728427181154,0.3866,2450.6,2450.5,0.4083]
[1728427183552,0.3866,2450.6,2450.4,0.4083]
[1728427183752,0.4083,2450.5,2450.4,0.4083]
[1728427184257,0.79489,2450.6,2450.4,0.4083]
[1728427184751,0.79489,2450.6,2450.5,0.4083]
[1728427184752,0.3866,2450.6,2450.5,0.4083]
[1728427184954,0.79488,2450.6,2450.5,0.4083]
[1728427189850,1.8566,2450.6,2450.1,2.02333002]
[1728427190059,1.8566,2450.6,2450.3,0.40833]
[1728427190256,0.40832,2450.4,2450.3,0.40833]
[1728427190659,0.40832,2450.4,2450.3,1.0156626]
[1728427191057,0.40832,2450.4,2450.3,0.40833]
[1728427192160,0.40832,2450.4,2450.3,1.01573668]
[1728427192457,0.40832,2450.4,2450.3,0.40833]
[1728427193254,5.0644,2450.6,2450.0,1.8699]
[1728427193447,0.40831,2450.5,2450.4,0.40832]
[1728427193854,0.40831,2450.5,2450.3,0.40832]
[1728427194056,0.4155,2450.4,2450.3,0.40832]
[1728427194554,0.4155,2450.4,2450.3,1.01579546]
[1728427194853,0.82382,2450.4,2450.3,1.01579546]
[1728427195055,0.82382,2450.4,2450.3,0.40832]
[1728427195555,0.4155,2450.4,2450.3,0.40832]
[1728427195967,0.4155,2450.4,2450.3,1.01582276]
[1728427196352,0.4155,2450.4,2450.3,2.02580146]
[1728427197059,0.4155,2450.4,2450.3,2.02580924]
[1728427200363,0.4155,2450.4,2450.3,0.81352]
[1728427200557,0.4155,2450.4,2450.3,2.02596471]
[1728427201958,0.4155,2450.4,2450.3,2.02602621]
[1728427202461,0.82382,2450.4,2450.3,1.21250621]
[1728427202765,0.82382,2450.4,2450.3,0.60770294]
[1728427203060,0.40833,2450.3,2450.2,0.40834]
[1728427203265,0.82773,2450.3,2450.2,1.62107642]
[1728427203661,0.82773,2450.3,2450.2,1.62109244]
[1728427204261,0.4194,2450.3,2450.2,1.62109244]
[1728427204460,0.4155,2450.4,2450.3,0.40833]
[1728427204656,0.4155,2450.4,2450.3,4.47245541]
[1728427205060,0.82382,2450.4,2450.3,1.62108244]
[1728427205762,0.82382,2450.4,2450.3,1.21275244]
[1728427205968,0.82382,2450.4,2450.3,0.60774827]
[1728427207760,6.37462,2450.4,2450.3,0.60774827]
[1728427207968,1.02085,2450.3,2449.7,2.10566002]
[1728427208168,11.9663,2450.4,2449.9,0.40839]
[1728427208169,0.40837,2450.1,2449.9,0.40839]
[1728427208467,0.384,2450.0,2449.9,1.8784]
[1728427208662,0.384,2450.0,2449.9,4.4119623]
[1728427208859,0.384,2450.0,2449.9,3.45145478]
[1728427209170,0.384,2450.0,2449.9,4.41196496]
[1728427210276,0.384,2450.0,2449.9,4.41216955]
[1728427210476,0.384,2450.0,2449.9,3.45153496]
[1728427210661,0.384,2450.0,2449.9,4.41214157]
[1728427210868,0.384,2450.0,2449.9,3.45153496]
[1728427211172,0.384,2450.0,2449.9,3.44435099]
[1728427211370,0.79238,2450.0,2449.9,1.00879662]
[1728427211882,0.384,2450.0,2449.9,1.00879662]
[1728427212171,0.384,2450.0,2449.9,3.44433713]
[1728427212365,0.384,2450.0,2449.9,4.81701318]
[1728427212964,0.384,2450.0,2449.9,3.85633713]
[1728427213165,0.3965,2450.2,2449.9,4.40865367]
[1728427213369,0.40837,2450.1,2450.0,0.60039662]
[1728427213567,0.40837,2450.1,2450.0,1.00877662]
[1728427214177,0.40837,2450.1,2450.0,1.00884753]
[1728427214365,0.3965,2450.2,2449.8,0.40841]
[1728427214366,0.40839,2450.0,2449.8,0.40841]
[1728427214578,2.29488,2450.0,2449.9,0.6004195]
[1728427214777,3.6281,2449.9,2449.5,0.40847]
[1728427215072,0.40844,2449.7,2449.6,0.60047486]
[1728427215272,0.40844,2449.7,2449.5,0.40845]
[1728427215475,0.3966,2449.6,2449.5,0.40845]
[1728427215667,0.3966,2449.6,2449.5,1.00871879]
[1728427217268,0.3966,2449.6,2449.5,0.40845]
[1728427218075,0.3966,2449.6,2449.5,1.00835345]
[1728427218270,0.3966,2449.6,2449.5,0.40845]
[1728427220369,0.3966,2449.6,2449.4,4.2747782]
[1728427220566,0.4085,2449.4,2449.2,0.79311]
[1728427220765,0.3999,2449.3,2449.2,0.79311]
[1728427221172,0.3999,2449.3,2449.2,4.87631]
[1728427221474,0.3999,2449.3,2449.2,0.79311]
[1728427221679,0.3999,2449.3,2449.2,6.34631]
[1728427222272,0.40844,2449.7,2449.5,0.40846]
[1728427222477,0.40844,2449.7,2449.5,1.87846]
[1728427222975,1.2249,2449.8,2449.7,0.40843]
[1728427223181,1.63332,2449.8,2449.6,1.87844]
[1728427223680,1.2249,2449.8,2449.7,0.40843]
[1728427224075,1.63332,2449.8,2449.6,0.40844]
[1728427224281,0.40843,2449.7,2449.5,1.87846]
[1728427225476,1.2249,2449.8,2449.7,0.40843]
[1728427225675,1.63332,2449.8,2449.6,0.81394]
[1728427226880,0.40843,2449.7,2449.6,0.4055]
[1728427227576,0.40843,2449.7,2449.5,1.87845]
[1728427227973,0.40843,2449.7,2449.5,1.87846]
[1728427228479,0.40843,2449.7,2449.5,1.47]
[1728427228680,0.40843,2449.7,2449.6,0.40845]
[1728427228876,0.40843,2449.7,2449.5,1.47]
[1728427229081,0.40843,2449.7,2449.5,1.87845]
[1728427230477,0.40843,2449.7,2449.5,1.47]
[1728427230673,0.40843,2449.7,2449.5,1.87845]
[1728427232381,0.40843,2449.7,2449.6,0.40845]
[1728427232780,0.40843,2449.7,2449.5,1.47]
[1728427232980,0.40843,2449.7,2449.5,1.87846]
[1728427233881,1.2249,2449.8,2449.6,1.47]
[1728427234079,1.2249,2449.8,2449.7,0.40843]
[1728427234080,0.8297,2449.8,2449.7,0.40843]
[1728427234281,0.40839,2450.0,2449.8,0.40842]
[1728427234480,1.22069,2450.0,2449.9,1.47]
[1728427234686,1.22069,2450.0,2449.9,1.8784]
[1728427234878,1.22069,2450.0,2449.9,1.47]
[1728427235087,0.8123,2450.0,2449.9,1.8784]
[1728427235284,0.40838,2450.0,2449.9,1.8784]
[1728427235585,0.79878,2450.0,2449.9,1.8784]
[1728427235779,0.3904,2450.0,2449.9,1.8784]
[1728427237590,3.61614,2450.3,2450.1,0.40837]
[1728427237890,0.4038,2450.2,2450.1,0.40837]
[1728427238075,0.4038,2450.2,2450.0,0.4116]
[1728427238076,0.4038,2450.2,2450.0,1.8816]
[1728427238486,3.6132,2450.3,2450.1,1.87837]
[1728427238684,1.41482,2450.4,2450.1,1.87837]
[1728427238685,0.4038,2450.4,2450.1,1.47]
[1728427238881,0.81213,2450.4,2450.2,2.28044]
[1728427239081,0.4038,2450.4,2450.0,0.4116]
[1728427239285,0.40836,2450.2,2450.0,0.81997]
[1728427239687,0.4052,2450.1,2450.0,0.81997]
[1728427240081,2.88478,2450.5,2450.0,0.81997]
[1728427240082,0.40832,2450.4,2450.2,0.40834]
[1728427240288,0.40832,2450.4,2450.0,1.61319345]
[1728427240289,0.40834,2450.3,2450.1,1.87836]
[1728427241999,0.40834,2450.3,2450.2,0.40835]
[1728427243806,3.613,2450.4,2449.9,0.4021]
[1728427244002,0.80936,2450.2,2450.0,1.01077268]
[1728427244305,0.80936,2450.2,2450.0,0.40837]
[1728427244515,0.4211,2450.1,2450.0,0.40837]
[1728427245305,0.4211,2450.1,2450.0,1.87837]
[1728427245900,0.4211,2450.1,2450.0,2.48087687]
[1728427246704,0.4211,2450.1,2450.0,3.08035375]
[1728427248002,0.82947,2450.1,2450.0,0.40837]
[1728427248203,0.8129,2450.1,2450.0,0.40837]
[1728427248400,0.401,2450.2,2450.1,0.40837]
[1728427248604,0.80935,2450.2,2450.1,0.40837]
[1728427249001,0.80935,2450.2,2449.9,1.8721]
[1728427249196,0.80935,2450.2,2450.0,0.40837]
[1728427259411,0.80936,2450.2,2450.0,0.40837]
[1728427262414,0.401,2450.2,2450.1,0.40837]
[1728427263025,0.80935,2450.2,2450.1,0.40837]
[1728427264923,0.80935,2450.2,2450.0,0.40837]
[1728427265218,0.401,2450.2,2450.0,0.40837]
[1728427265523,0.40837,2450.1,2450.0,0.40837]
[1728427266117,0.40837,2450.1,2450.0,1.01139356]
[1728427266316,0.40837,2450.1,2450.0,1.61142875]
[1728427266515,0.40837,2450.1,2450.0,1.20305875]
[1728427266716,0.401,2450.2,2450.0,0.60302356]
[1728427266920,0.40837,2450.1,2450.0,0.40838]
[1728427267119,0.80936,2450.2,2450.0,1.01146001]
[1728427267421,0.80936,2450.2,2450.0,0.40838]
[1728427269418,0.80936,2450.2,2449.9,1.47]
[1728427269625,0.80936,2450.2,2450.0,1.61162239]
[1728427269825,0.80936,2450.2,2450.0,0.40837]
[1728427270527,0.40837,2450.1,2450.0,0.40837]
[1728427270829,0.40837,2450.1,2450.0,1.01157236]
[1728427271033,0.40837,2450.1,2450.0,1.61173779]
[1728427271422,4.48997,2450.1,2450.0,1.20336779]
[1728427271623,4.0816,2450.1,2449.7,1.46767778]
[1728427271822,0.40843,2449.7,2449.6,1.06927778]
[1728427272026,0.40843,2449.7,2449.5,0.40846]
[1728427272324,0.3938,2449.6,2449.5,1.87846]
[1728427272520,0.3938,2449.6,2449.5,3.86086442]
[1728427273130,0.3938,2449.6,2449.5,5.50370038]
[1728427273728,0.40842,2449.8,2449.6,0.40844]
[1728427273922,0.81472,2449.8,2449.7,0.60334073]
[1728427275327,8.10492,2449.8,2449.7,0.60334073]
[1728427275529,7.6965,2449.8,2449.4,0.40848]
[1728427275734,0.40845,2449.6,2449.5,0.60338775]
[1728427276231,3.6141,2449.8,2449.5,1.01185775]
[1728427276427,0.40844,2449.7,2449.5,0.40847]
[1728427276735,0.4211,2449.6,2449.5,0.40847]
[1728427276935,0.82956,2449.6,2449.5,0.60333499]
[1728427277830,0.82956,2449.6,2449.5,1.01180499]
[1728427277831,0.4211,2449.6,2449.5,1.01180499]
[1728427278133,0.4211,2449.6,2449.5,2.48180499]
[1728427278632,3.6141,2449.8,2449.7,0.40843]
[1728427278933,0.4063,2449.8,2449.6,0.407]
[1728427279136,0.4063,2449.8,2449.7,0.40843]
[1728427279434,0.81472,2449.8,2449.7,0.40843]
[1728427279828,0.81472,2449.8,2449.6,0.407]
[1728427280030,0.81472,2449.8,2449.6,0.81544]
[1728427284532,0.81472,2449.8,2449.7,0.40843]
[1728427285136,0.81472,2449.8,2449.6,0.81544]
[1728427286035,0.4063,2449.8,2449.7,0.40843]
[1728427286632,0.81472,2449.8,2449.7,0.40843]
[1728427286833,0.4063,2449.8,2449.7,0.40843]
[1728427287635,0.3954,2450.0,2449.9,0.4084]
[1728427287636,0.80378,2450.0,2449.9,0.4084]
[1728427287841,0.3954,2450.0,2449.9,0.4084]
[1728427288645,0.80378,2450.0,2449.9,0.4084]
[1728427289446,0.80378,2450.0,2449.9,1.01159221]
[1728427289447,0.3954,2450.0,2449.9,1.01159221]
[1728427289747,0.3954,2450.0,2449.9,0.4084]
[1728427290138,0.80378,2450.0,2449.9,0.4084]
[1728427291348,0.80378,2450.0,2449.9,1.01163018]
[1728427291549,0.80378,2450.0,2449.8,1.47]
[1728427291749,0.80378,2450.0,2449.8,1.8784]
[1728427292448,0.80378,2450.0,2449.9,0.60326389]
[1728427292847,0.3954,2450.0,2449.8,1.47]
[1728427293042,0.3954,2450.0,2449.9,1.01165674]
[1728427294548,0.8165,2450.1,2450.0,0.40838]
[1728427294745,0.40836,2450.2,2450.0,0.40838]
[1728427294746,0.3815,2450.3,2450.2,0.40835]
[1728427295845,0.3815,2450.3,2450.2,1.01159038]
[1728427296041,0.3815,2450.3,2450.2,1.01159062]
[1728427296246,0.3815,2450.3,2450.2,0.40835]
[1728427299056,9.1409,2450.3,2449.9,1.06927778]
[1728427299263,0.40836,2450.2,2450.0,1.01158899]
[1728427299561,0.80827,2450.1,2450.0,0.40837]
[1728427299755,0.3999,2450.1,2450.0,1.01158867]
[1728427300358,0.80827,2450.1,2450.0,1.01158867]
[1728427300553,1.19907,2450.1,2450.0,0.60321867]
[1728427300857,0.40839,2450.0,2449.8,0.40841]
[1728427301162,0.82279,2450.0,2449.8,0.40841]
[1728427301361,0.82279,2450.0,2449.9,0.60325439]
[1728427301659,0.82279,2450.0,2449.8,0.40841]
[1728427303056,0.82279,2450.0,2449.7,1.45147778]
[1728427303256,0.4144,2450.0,2449.9,0.4084]
[1728427303459,0.4144,2450.0,2449.9,1.01167041]
[1728427303460,0.82278,2450.0,2449.9,1.01167041]
[1728427303858,0.82278,2450.0,2449.9,0.60327041]
[1728427304856,0.82278,2450.0,2449.9,1.01167041]
[1728427305055,0.4144,2450.0,2449.9,1.01167041]
[1728427305266,0.4144,2450.0,2449.9,0.60327041]
[1728427305566,0.82278,2450.0,2449.9,0.60327041]
[1728427306763,0.82278,2450.0,2449.8,0.40841]
[1728427308370,0.82278,2450.0,2449.7,1.47]
[1728427308371,0.40843,2449.8,2449.6,0.40844]
[1728427308567,1.2077,2449.7,2449.6,0.40844]
[1728427308769,1.2077,2449.7,2449.6,1.97720554]
[1728427308968,1.2077,2449.7,2449.6,3.04648332]
[1728427309173,1.2077,2449.7,2449.6,1.01181229]
[1728427309372,1.2077,2449.7,2449.6,4.51651721]
[1728427309766,1.2077,2449.7,2449.6,5.09015286]
[1728427309964,1.2077,2449.7,2449.6,2.94771778]
[1728427310163,1.2077,2449.7,2449.6,3.44726105]
[1728427310367,1.2077,2449.7,2449.6,2.48183271]
[1728427310561,1.2077,2449.7,2449.6,3.4473097]
[1728427311262,1.2077,2449.7,2449.6,4.51658748]
[1728427311462,1.2077,2449.7,2449.6,3.4473097]
[1728427311660,1.2077,2449.7,2449.6,3.44734299]
[1728427311861,1.2077,2449.7,2449.6,4.51662077]
[1728427312064,1.2077,2449.7,2449.6,5.09030542]
[1728427312464,0.8141,2449.7,2449.6,6.52222051]
[1728427312662,0.8141,2449.7,2449.6,6.91782297]
[1728427312867,0.8141,2449.7,2449.6,5.48590542]
[1728427313067,0.8141,2449.7,2449.6,4.51662077]
[1728427313271,1.8519,2450.0,2449.6,0.60339271]
[1728427313472,1.8519,2450.0,2449.6,0.40845]
[1728427313473,0.415,2449.7,2449.6,0.40845]
[1728427313770,0.415,2449.7,2449.4,1.45737778]
[1728427313771,0.415,2449.7,2449.4,1.47775778]
[1728427313964,0.40847,2449.5,2449.3,2.53927778]
[1728427314165,0.40847,2449.5,2449.4,0.60351499]
[1728427314670,0.40847,2449.5,2449.1,0.40853]
[1728427314671,0.4085,2449.3,2449.1,0.40853]
[1728427314866,1.60872,2449.2,2449.0,4.27707778]
[1728427315075,1.60872,2449.2,2449.1,0.60350203]
[1728427315473,1.11611,2449.7,2449.1,2.07350203]
[1728427315474,0.095,2449.7,2449.1,2.07350203]
[1728427315675,1.168,2449.6,2449.5,0.40847]
[1728427315873,1.57646,2449.6,2449.4,1.87848]
[1728427317472,1.168,2449.6,2449.5,0.40847]
[1728427317667,1.57645,2449.6,2449.4,1.87847]
[1728427317863,1.168,2449.6,2449.5,1.87847]
[1728427318070,1.168,2449.6,2449.5,2.4817082]
[1728427318275,1.57645,2449.6,2449.5,1.87847]
[1728427318476,1.168,2449.6,2449.5,0.40847]
[1728427321172,0.7785,2449.6,2449.5,0.40847]
[1728427322179,0.7785,2449.6,2449.5,1.01161419]
[1728427322382,0.7785,2449.6,2449.5,0.40847]
[1728427322586,0.3857,2449.6,2449.5,0.40847]
[1728427322880,1.20651,2449.9,2449.7,0.40843]
[1728427323190,0.78962,2449.8,2449.6,0.40844]
[1728427323687,0.3812,2449.8,2449.7,0.40843]
[1728427323986,0.78963,2449.8,2449.6,0.40844]
[1728427325884,0.78963,2449.8,2449.4,1.06927778]
[1728427326082,0.78963,2449.8,2449.6,0.40844]
[1728427326287,0.3812,2449.8,2449.4,1.06927778]
[1728427326481,0.3812,2449.8,2449.5,1.01160033]
[1728427326482,0.40844,2449.7,2449.5,1.01160033]
[1728427326682,0.3812,2449.8,2449.6,0.40844]
[1728427326683,0.78963,2449.8,2449.6,0.40844]
[1728427327288,0.40843,2449.7,2449.6,0.40844]
[1728427328081,0.3812,2449.8,2449.6,0.40844]
[1728427328282,0.78962,2449.8,2449.6,0.40844]
[1728427329087,0.40843,2449.7,2449.6,0.40844]
[1728427329385,0.40843,2449.7,2449.6,1.01159749]
[1728427329589,0.78962,2449.8,2449.6,0.40843]
[1728427330693,0.40843,2449.7,2449.5,0.40845]
[1728427331097,0.40843,2449.7,2449.6,0.40845]
[1728427332683,0.78962,2449.8,2449.6,0.40845]
[1728427332890,0.78962,2449.8,2449.7,0.40843]
[1728427333592,0.3812,2449.8,2449.7,0.40843]
[1728427333791,0.78962,2449.8,2449.7,0.40843]
[1728427334184,0.78962,2449.8,2449.6,0.40844]
[1728427336185,0.40843,2449.7,2449.5,0.40845]
[1728427336386,0.3812,2449.8,2449.6,0.60317585]
[1728427336584,0.3812,2449.8,2449.7,1.22023]
[1728427336791,0.3812,2449.8,2449.7,1.82337537]
[1728427337189,0.7981,2449.9,2449.8,0.40842]
[1728427337391,3.61619,2450.0,2449.9,0.4084]
[1728427337392,3.2078,2450.0,2449.9,0.4084]
[1728427337595,3.2078,2450.0,2449.9,4.20152101]
[1728427337791,3.2078,2450.0,2449.9,8.28312101]
[1728427338292,3.2078,2450.0,2449.9,7.68]
[1728427338495,3.2078,2450.0,2449.9,8.28311428]
[1728427338694,3.2078,2450.0,2449.9,4.20151428]
[1728427339494,3.6191,2450.0,2449.9,8.28311428]
[1728427339694,3.6191,2450.0,2449.9,4.20151428]
[1728427339998,3.6191,2450.0,2449.9,8.28311428]
[1728427340493,3.2078,2450.0,2449.9,6.56311428]
[1728427340699,0.4229,2450.1,2449.9,6.15471428]
[1728427340891,0.4229,2450.1,2450.0,1.01144008]
[1728427341089,0.4229,2450.1,2450.0,0.82678]
[1728427341399,0.4229,2450.1,2450.0,1.42982279]
[1728427341595,0.40832,2450.4,2450.2,0.40834]
[1728427341797,0.81082,2450.4,2450.2,0.40834]
[1728427341998,0.81082,2450.4,2450.3,0.40833]
[1728427342200,0.81082,2450.4,2450.1,2.29106]
[1728427342201,0.40834,2450.3,2450.1,2.29106]
[1728427342400,0.4025,2450.4,2450.0,1.47]
[1728427342401,0.40835,2450.2,2450.0,1.47]
[1728427342694,0.40842,2449.8,2449.7,1.06927778]
[1728427342900,0.40842,2449.8,2449.7,0.60311419]
[1728427343103,0.4084,2450.0,2449.8,0.40842]
[1728427344098,0.40838,2450.0,2449.8,0.40841]
[1728427344802,0.40838,2450.0,2449.7,1.47]
[1728427344803,5.8772,2450.1,2449.7,1.47]
[1728427344993,0.40841,2449.9,2449.7,1.87842]
[1728427345396,0.4153,2449.8,2449.7,1.87842]
[1728427347002,0.4153,2449.8,2449.7,2.48174676]
[1728427347915,0.4153,2449.8,2449.7,2.48174263]
[1728427348605,0.82372,2449.8,2449.7,0.60332263]
[1728427348804,0.4153,2449.8,2449.5,1.06927778]
[1728427349011,0.8048,2449.7,2449.6,1.01180723]
[1728427349315,1.21323,2449.7,2449.5,0.40845]
[1728427354011,1.47,2449.6,2449.4,1.06927778]
[1728427354211,1.47,2449.5,2449.2,1.06927778]
[1728427354513,0.40852,2449.2,2449.1,1.06927778]
[1728427354706,0.40852,2449.2,2449.1,0.60347902]
[1728427355319,0.4085,2449.3,2449.1,1.01199902]
[1728427355520,0.7954,2449.2,2449.1,0.40852]
[1728427355716,0.7954,2449.2,2449.1,1.01192036]
[1728427355717,1.2106,2449.2,2449.1,1.01192036]
[1728427356508,1.61912,2449.2,2449.1,0.60340036]
[1728427357017,0.40857,2448.9,2448.8,1.06927778]
[1728427357217,7.78513,2449.2,2448.8,0.60335551]
[1728427357218,1.47,2449.1,2448.8,0.60335551]
[1728427357521,1.47,2449.1,2448.7,0.40859]
[1728427357918,0.40857,2448.9,2448.7,0.40859]
[1728427358323,0.3978,2448.8,2448.7,0.40859]
[1728427358519,0.3978,2448.8,2448.7,1.01157304]
[1728427358913,0.3978,2448.8,2448.7,1.01158304]
[1728427359224,0.3978,2448.8,2448.6,0.4086]
[1728427359422,0.8013,2448.8,2448.6,0.4086]
[1728427359620,0.40862,2448.6,2448.5,1.06927778]
[1728427359821,0.40862,2448.6,2448.3,0.40866]
[1728427359822,1.87862,2448.6,2448.3,0.40866]
[1728427360020,0.8013,2448.8,2448.5,1.47]
[1728427360219,0.8013,2448.8,2448.7,0.4086]
[1728427360723,0.3978,2448.8,2448.7,3.5986]
[1728427370123,0.3845,2449.0,2448.7,3.19]
[1728427370329,0.095,2449.2,2448.9,3.19]